bitfinex/quotes_BTCUSD_20220103
["timestamp","ask_amount","ask_price","bid_price","bid_amount"]
[1641211365916,1.67260934,47381.0,47380.0,0.00209]
[1641211366315,1.18260934,47381.0,47380.0,0.00209]
[1641211366916,1.65260934,47381.0,47380.0,0.00209]
[1641211367117,1.18260934,47381.0,47380.0,0.00209]
[1641211367316,1.11711934,47381.0,47380.0,0.00209]
[1641211367760,0.64711934,47381.0,47380.0,0.00209]
[1641211369862,1.03711934,47381.0,47380.0,0.00209]
[1641211370064,1.13711934,47381.0,47380.0,0.00209]
[1641211372918,0.29952962,47378.0,47376.0,0.00836238]
[1641211373118,0.31919,47377.0,47376.0,0.00836238]
[1641211374320,0.105578,47372.0,47366.0,0.633]
[1641211374522,0.052789,47372.0,47364.0,0.00129626]
[1641211374920,0.052789,47372.0,47365.0,0.00010954]
[1641211375660,0.052792,47369.0,47365.0,0.00010954]
[1641211375859,0.052789,47368.0,47365.0,0.00010954]
[1641211376259,0.27100235,47367.0,47365.0,0.00010954]
[1641211376859,0.052789,47368.0,47363.0,0.00014606]
[1641211377068,0.052793,47367.0,47363.0,0.00014606]
[1641211377261,0.105583,47371.0,47362.0,0.00016432]
[1641211377460,0.28808022,47363.0,47362.0,0.00016432]
[1641211379919,0.28808022,47363.0,47361.0,0.05818137]
[1641211383168,0.28808022,47363.0,47361.0,0.00243159]
[1641211383567,0.28808022,47363.0,47362.0,0.394189]
[1641211383769,0.28808022,47363.0,47362.0,1.59249551]
[1641211383970,0.28808022,47363.0,47362.0,1.64249551]
[1641211384669,0.28808022,47363.0,47362.0,1.59249551]
[1641211385271,0.28808022,47363.0,47362.0,1.54249551]
[1641211385474,0.28808022,47363.0,47362.0,1.19830651]
[1641211385675,0.49808022,47363.0,47362.0,1.19830651]
[1641211386074,0.49808022,47363.0,47361.0,0.00243159]
[1641211386274,0.49808022,47363.0,47362.0,0.71412273]
[1641211386522,0.49808022,47363.0,47362.0,0.76412273]
[1641211387523,0.28061332,47367.0,47365.0,9.39632478]
[1641211387922,7.303e-05,47366.0,47365.0,9.39632478]
[1641211388525,0.05022676,47366.0,47365.0,9.39632478]
[1641211395034,0.26022676,47366.0,47365.0,9.39632478]
[1641211418322,1.15792921,47366.0,47365.0,9.39632478]
[1641211418525,1.2568843,47366.0,47365.0,9.39632478]
[1641211418921,0.80762676,47366.0,47365.0,9.39632478]
[1641211419124,2.16018328,47366.0,47365.0,9.39632478]
[1641211419324,2.9094824,47366.0,47365.0,9.39632478]
[1641211420170,3.4094824,47366.0,47365.0,9.39632478]
[1641211420371,2.2294824,47366.0,47365.0,9.39632478]
[1641211421274,2.5794824,47366.0,47365.0,9.39632478]
[1641211421873,2.2294824,47366.0,47365.0,9.39632478]
[1641211425834,3.3494824,47366.0,47365.0,9.39632478]
[1641211426037,3.3494824,47366.0,47365.0,8.97380278]
[1641211426433,3.3494824,47366.0,47365.0,8.55127878]
[1641211427136,3.3494824,47366.0,47365.0,7.70622278]
[1641211427439,4.0246921,47366.0,47365.0,6.86109378]
[1641211427687,3.3546921,47366.0,47365.0,6.86109378]
[1641211427888,3.6045921,47366.0,47365.0,6.43851678]
[1641211428085,3.6045921,47366.0,47365.0,5.59337025]
[1641211428486,5.7466641,47366.0,47365.0,4.32561442]
[1641211428687,5.8108531,47366.0,47365.0,4.32561442]
[1641211428889,5.7658441,47366.0,47365.0,4.32561442]
[1641211429088,5.7658441,47366.0,47365.0,3.05787944]
[1641211429488,6.0459851,47366.0,47365.0,2.63529844]
[1641211430090,5.7596541,47366.0,47365.0,2.21272244]
[1641211430291,5.7596541,47366.0,47365.0,1.45531244]
[1641211430292,6.1096541,47366.0,47365.0,1.45531244]
[1641211430495,5.8897541,47366.0,47365.0,0.91767457]
[1641211430691,5.9897541,47366.0,47365.0,0.07247057]
[1641211430895,5.8897541,47366.0,47365.0,0.07247057]
[1641211431092,1.61,47365.0,47361.0,0.00243159]
[1641211431296,1.81,47358.0,47351.0,0.002]
[1641211431535,4.8489363,47358.0,47351.0,0.002]
[1641211431735,5.21734676,47358.0,47351.0,0.002]
[1641211432435,1.25,47352.0,47351.0,0.002]
[1641211432636,1.71659,47352.0,47351.0,0.002]
[1641211433438,2.14587336,47352.0,47351.0,0.002]
[1641211433634,2.225629,47352.0,47351.0,0.002]
[1641211433835,1.79634564,47352.0,47351.0,0.002]
[1641211434034,2.14912491,47352.0,47351.0,0.002]
[1641211435272,0.66659,47352.0,47351.0,0.002]
[1641211435674,1.0961336,47352.0,47351.0,0.002]
[1641211435872,1.1061336,47352.0,47351.0,0.002]
[1641211436273,1.3061336,47352.0,47351.0,0.002]
[1641211436473,0.87659,47352.0,47351.0,0.002]
[1641211437073,1.31659,47352.0,47351.0,0.002]
[1641211437273,0.87659,47352.0,47351.0,0.002]
[1641211437477,0.95634564,47352.0,47351.0,0.002]
[1641211437676,0.67659,47352.0,47351.0,0.002]
[1641211437875,0.57659,47352.0,47351.0,0.002]
[1641211438075,0.67659,47352.0,47351.0,0.002]
[1641211438274,0.87659,47352.0,47351.0,0.002]
[1641211438476,1.30419148,47352.0,47351.0,0.002]
[1641211438679,0.87659,47352.0,47351.0,0.002]
[1641211438947,0.67659,47352.0,47351.0,0.002]
[1641211439138,0.57659,47352.0,47351.0,0.002]
[1641211439336,0.67659,47352.0,47351.0,0.002]
[1641211440343,0.87659,47352.0,47351.0,0.002]
[1641211440540,1.30495794,47352.0,47351.0,0.002]
[1641211440743,0.87659,47352.0,47351.0,0.002]
[1641211441040,1.30924331,47352.0,47351.0,0.002]
[1641211441842,0.87659,47352.0,47351.0,0.002]
[1641211442242,0.67659,47352.0,47351.0,0.002]
[1641211443486,0.57659,47352.0,47351.0,0.002]
[1641211443689,1.00723519,47352.0,47351.0,0.002]
[1641211443890,1.20723519,47352.0,47351.0,0.002]
[1641211444489,1.70723519,47352.0,47351.0,0.002]
[1641211444688,1.85723519,47352.0,47351.0,0.002]
[1641211446089,1.50634564,47352.0,47351.0,0.002]
[1641211446290,1.42659,47352.0,47351.0,0.002]
[1641211446924,2.09659,47352.0,47351.0,0.002]
[1641211447121,1.42659,47352.0,47351.0,0.002]
[1641211447325,1.52659,47352.0,47351.0,0.002]
[1641211447523,2.11431446,47352.0,47351.0,0.002]
[1641211447723,2.01869,47352.0,47351.0,0.002]
[1641211447924,2.09844564,47352.0,47351.0,0.002]
[1641211448527,2.2639008,47352.0,47351.0,0.002]
[1641211450984,3.3839008,47352.0,47351.0,0.002]
[1641211451588,0.052829,47348.0,47341.0,0.002]
[1641211451796,0.2,47350.0,47341.0,0.002]
[1641211451800,2.46932925,47342.0,47341.0,0.002]
[1641211451986,3.16525781,47342.0,47341.0,0.002]
[1641211452188,0.2,47340.0,47337.0,0.00840901]
[1641211452385,2.736289,47338.0,47337.0,0.00840901]
[1641211452586,4.38381306,47338.0,47337.0,0.00840901]
[1641211452986,4.38381306,47338.0,47337.0,0.00340901]
[1641211453929,4.44502768,47338.0,47337.0,0.00340901]
[1641211454224,4.44502768,47338.0,47335.0,0.10839324]
[1641211454430,3.17402337,47337.0,47335.0,0.10839324]
[1641211454725,2.87128764,47337.0,47336.0,0.01054773]
[1641211455026,1.37149883,47337.0,47336.0,0.01054773]
[1641211455425,1.311532,47337.0,47336.0,0.01054773]
[1641211455624,1.361532,47337.0,47336.0,0.01054773]
[1641211455825,1.44128764,47337.0,47336.0,0.01054773]
[1641211456526,1.44255022,47337.0,47336.0,0.01054773]
[1641211457427,1.65255022,47337.0,47336.0,0.01054773]
[1641211459093,2.1172838,47337.0,47336.0,0.01054773]
[1641211459298,2.77255022,47337.0,47336.0,0.01054773]
[1641211461096,1.65255022,47337.0,47336.0,0.01054773]
[1641211461740,2.05255022,47337.0,47336.0,0.01054773]
[1641211462739,2.05775992,47337.0,47336.0,0.01054773]
[1641211462938,1.65775992,47337.0,47336.0,0.01054773]
[1641211463940,2.77775992,47337.0,47336.0,0.01054773]
[1641211471842,2.92,47336.0,47335.0,0.10839324]
[1641211472044,4.18913964,47336.0,47335.0,0.10839324]
[1641211472241,4.19434934,47336.0,47335.0,0.10839324]
[1641211473980,2.5145937,47336.0,47335.0,0.10839324]
[1641211474181,1.389384,47336.0,47335.0,0.10839324]
[1641211474380,1.289384,47336.0,47335.0,0.10839324]
[1641211474984,1.36913964,47336.0,47335.0,0.10839324]
[1641211475580,1.51913964,47336.0,47335.0,0.10839324]
[1641211475780,1.46913964,47336.0,47335.0,0.10839324]
[1641211476836,1.20133364,47336.0,47335.0,0.10839324]
[1641211477040,1.26129959,47336.0,47335.0,0.10839324]
[1641211477740,1.31129959,47336.0,47335.0,0.10839324]
[1641211483192,1.74113126,47336.0,47335.0,0.09839324]
[1641211483792,1.31129959,47336.0,47335.0,0.09839324]
[1641211484643,1.73996737,47336.0,47335.0,0.09839324]
[1641211485249,1.31129959,47336.0,47335.0,0.09839324]
[1641211486042,2.43129959,47336.0,47335.0,0.09839324]
[1641211486240,1.31129959,47336.0,47335.0,0.09839324]
[1641211486843,1.73863706,47336.0,47335.0,0.09839324]
[1641211487546,2.85863706,47336.0,47335.0,0.09839324]
[1641211487984,2.43129959,47336.0,47335.0,0.09839324]
[1641211488185,1.81129959,47336.0,47335.0,0.09839324]
[1641211488388,1.76129959,47336.0,47335.0,0.09839324]
[1641211489690,3.31396453,47336.0,47335.0,0.09839324]
[1641211491439,2.19396453,47336.0,47335.0,0.09839324]
[1641211492837,2.19396453,47336.0,47335.0,0.08459324]
[1641211493235,1.76129959,47336.0,47335.0,0.08459324]
[1641211494035,2.1923569,47336.0,47335.0,0.08459324]
[1641211494435,3.4123569,47336.0,47335.0,0.08459324]
[1641211495883,3.3623569,47336.0,47335.0,0.08459324]
[1641211496882,2.93129959,47336.0,47335.0,0.08459324]
[1641211498387,1.12,47334.0,47332.0,0.00888206]
[1641211498586,3.13839664,47333.0,47332.0,0.00888206]
[1641211498787,4.41410564,47333.0,47332.0,0.00888206]
[1641211499029,0.158568,47328.0,47320.0,0.0001]
[1641211499330,0.84950257,47322.0,47320.0,0.0001]
[1641211499529,2.51709023,47322.0,47321.0,0.05485534]
[1641211499728,2.51709023,47322.0,47321.0,0.00227387]
[1641211500229,2.40133958,47322.0,47321.0,0.00227387]
[1641211500930,2.45133958,47322.0,47321.0,0.00227387]
[1641211501331,2.40133958,47322.0,47321.0,0.00227387]
[1641211501531,3.24090358,47322.0,47321.0,0.00227387]
[1641211502131,2.38154633,47322.0,47321.0,0.00227387]
[1641211502887,2.43154633,47322.0,47321.0,0.00227387]
[1641211503191,2.46130197,47322.0,47321.0,0.00227387]
[1641211503387,2.51130197,47322.0,47321.0,0.00227387]
[1641211504188,2.45133958,47322.0,47321.0,0.00227387]
[1641211504389,3.29083263,47322.0,47321.0,0.00227387]
[1641211504990,2.51130835,47322.0,47321.0,0.00227387]
[1641211506291,2.51130835,47322.0,47321.0,0.002]
[1641211506944,2.51130835,47322.0,47321.0,0.00227387]
[1641211508944,2.72130835,47322.0,47321.0,0.00227387]
[1641211509146,2.66845135,47322.0,47321.0,0.00263294]
[1641211509443,3.78845135,47322.0,47321.0,0.00263294]
[1641211512895,4.38055135,47322.0,47321.0,0.00263294]
[1641211513595,0.052868,47320.0,47317.0,0.00841818]
[1641211513795,2.03099664,47318.0,47317.0,0.00841818]
[1641211514037,2.33970664,47318.0,47317.0,0.00841818]
[1641211514238,1.22,47317.0,47308.0,1.0993]
[1641211514441,1.33975564,47312.0,47306.0,0.6084]
[1641211514736,2.30424733,47312.0,47306.0,0.6084]
[1641211515138,2.30424733,47312.0,47306.0,0.01]
[1641211515337,3.3751727,47312.0,47307.0,0.00841836]
[1641211515537,3.3751727,47312.0,47308.0,0.05286921]
[1641211516337,0.319141,47308.0,47302.0,0.00048446]
[1641211516540,0.319141,47308.0,47297.0,0.71412273]
[1641211516541,1.95185564,47303.0,47297.0,0.71412273]
[1641211516741,1.95185564,47303.0,47297.0,0.70670719]
[1641211516742,0.67185564,47301.0,47297.0,0.70670719]
[1641211516940,0.0474,47300.0,47295.0,0.70670719]
[1641211517143,0.0474,47300.0,47298.0,0.0003469]
[1641211517338,2.2895086,47299.0,47298.0,0.0003469]
[1641211517541,4.1458249,47299.0,47298.0,0.0003469]
[1641211517789,4.1958249,47299.0,47292.0,0.00045645]
[1641211517993,0.319141,47295.0,47292.0,0.00045645]
[1641211518190,0.319141,47293.0,47292.0,0.00045645]
[1641211518394,0.366541,47293.0,47292.0,0.00166688]
[1641211518696,0.866541,47293.0,47292.0,0.00166688]
[1641211518894,0.866541,47293.0,47292.0,0.10166688]
[1641211519191,0.866541,47293.0,47292.0,0.00166688]
[1641211519393,1.46408019,47293.0,47292.0,0.00166688]
[1641211519794,1.67408019,47293.0,47292.0,0.00166688]
[1641211519996,1.67408019,47293.0,47292.0,0.00045645]
[1641211520194,1.076541,47293.0,47292.0,0.00045645]
[1641211520392,0.576541,47293.0,47292.0,0.00045645]
[1641211520696,0.676541,47293.0,47292.0,0.00045645]
[1641211521197,1.176541,47293.0,47292.0,0.00045645]
[1641211522534,1.6044859,47293.0,47292.0,0.00045645]
[1641211522735,1.6544859,47293.0,47292.0,0.00045645]
[1641211522934,1.226541,47293.0,47292.0,0.00045645]
[1641211524135,1.22625784,47293.0,47292.0,0.00045645]
[1641211524336,1.176541,47293.0,47292.0,0.00045645]
[1641211524935,1.68812794,47293.0,47292.0,0.00045645]
[1641211525199,3.73183749,47293.0,47292.0,0.00045645]
[1641211525498,5.71303049,47293.0,47292.0,0.00045645]
[1641211525698,5.76303049,47293.0,47292.0,0.00045645]
[1641211525898,3.04303049,47293.0,47292.0,0.00045645]
[1641211526303,2.25613719,47293.0,47292.0,0.00045645]
[1641211526502,2.77,47292.0,47291.0,0.002]
[1641211526697,4.36251758,47292.0,47291.0,0.002]
[1641211526898,4.46251758,47292.0,47291.0,0.002]
[1641211527098,3.64515026,47292.0,47291.0,0.002]
[1641211527299,3.64515026,47292.0,47290.0,0.0001]
[1641211527300,1.345793,47291.0,47290.0,0.0001]
[1641211527598,3.73019876,47291.0,47290.0,0.0001]
[1641211527800,3.73540846,47291.0,47290.0,0.0001]
[1641211528000,5.69061393,47291.0,47290.0,0.0001]
[1641211528299,0.49,47290.0,47287.0,0.00011]
[1641211528498,2.16441307,47288.0,47287.0,0.00011]
[1641211528698,2.71181307,47288.0,47287.0,0.00011]
[1641211528949,2.81181307,47288.0,47287.0,0.00011]
[1641211529135,2.81702277,47288.0,47287.0,0.00011]
[1641211529338,2.81702277,47288.0,47286.0,0.00011]
[1641211529339,1.51,47287.0,47286.0,0.00011]
[1641211529537,2.81377775,47287.0,47286.0,0.00011]
[1641211529736,3.31377775,47287.0,47286.0,0.00021955]
[1641211529937,3.61656661,47287.0,47286.0,0.00021955]
[1641211531138,1.9411855,47287.0,47286.0,0.00021955]
[1641211536197,1.9411855,47287.0,47282.0,0.00011]
[1641211536198,1.8411855,47287.0,47282.0,0.00011]
[1641211536459,2.124141,47286.0,47282.0,0.00011]
[1641211536647,2.171541,47286.0,47282.0,0.00011]
[1641211536851,2.25129664,47286.0,47282.0,0.00011]
[1641211537049,2.171541,47286.0,47282.0,0.00011]
[1641211537248,2.25129664,47286.0,47282.0,0.00011]
[1641211537648,2.171541,47286.0,47282.0,0.00011]
[1641211537849,1.511541,47286.0,47282.0,0.00011]
[1641211538050,1.74129664,47286.0,47282.0,0.00011]
[1641211538255,0.919441,47286.0,47282.0,0.00011]
[1641211538452,0.872041,47286.0,47282.0,0.45307174]
[1641211538650,0.872041,47286.0,47282.0,0.05011]
[1641211538851,0.95179664,47286.0,47282.0,0.00011]
[1641211539253,0.872041,47286.0,47282.0,0.00011]
[1641211539456,0.872041,47286.0,47283.0,0.05299776]
[1641211540295,0.372041,47286.0,47283.0,0.05299776]
[1641211540701,0.472041,47286.0,47283.0,0.05299776]
[1641211540895,0.372041,47286.0,47283.0,0.05299776]
[1641211541096,0.319141,47285.0,47283.0,0.00321776]
[1641211541299,0.29235754,47284.0,47283.0,0.00321776]
[1641211542297,0.29235754,47284.0,47283.0,0.00011]
[1641211542698,0.29178035,47284.0,47283.0,0.00011]
[1641211542898,1.23490054,47285.0,47283.0,0.00011]
[1641211543100,0.319141,47284.0,47283.0,0.00011]
[1641211543499,0.71728243,47284.0,47277.0,0.6136087]
[1641211543699,0.39814143,47284.0,47277.0,0.6036087]
[1641211543942,0.27657117,47283.0,47278.0,0.00014606]
[1641211544138,0.052891,47281.0,47278.0,0.00014606]
[1641211545339,0.052891,47281.0,47277.0,0.00016432]
[1641211546338,0.69623145,47283.0,47277.0,0.00016432]
[1641211546539,0.152887,47283.0,47277.0,0.00016432]
[1641211546740,0.152887,47283.0,47277.0,0.05305232]
[1641211546940,0.052887,47283.0,47278.0,0.39689828]
[1641211547142,0.052887,47283.0,47278.0,0.44689828]
[1641211547347,0.052887,47283.0,47279.0,0.0001278]
[1641211547786,0.052887,47283.0,47280.0,0.05288982]
[1641211547988,0.052887,47283.0,47280.0,0.03267056]
[1641211548287,0.052887,47283.0,47281.0,9.128e-05]
[1641211549891,0.262887,47283.0,47281.0,9.128e-05]
[1641211550400,0.262887,47283.0,47278.0,0.34401107]
[1641211550401,0.00120132,47279.0,47278.0,0.34401107]
[1641211550591,0.105777,47281.0,47276.0,0.04278056]
[1641211550789,0.208666,47281.0,47276.0,0.04278056]
[1641211550990,0.208666,47281.0,47277.0,7.304e-05]
[1641211551192,0.208666,47281.0,47278.0,0.05288702]
[1641211551463,0.052887,47280.0,47279.0,0.39367423]
[1641211553060,0.052887,47280.0,47279.0,1.11384602]
[1641211553858,0.052887,47280.0,47279.0,0.518868]
[1641211554059,0.052887,47280.0,47278.0,0.16673304]
[1641211555066,0.052887,47280.0,47278.0,0.05288702]
[1641211557295,0.158673,47279.0,47277.0,7.304e-05]
[1641211559241,0.319141,47278.0,47277.0,7.304e-05]
[1641211559642,0.419141,47278.0,47277.0,7.304e-05]
[1641211561945,0.469141,47278.0,47277.0,7.304e-05]
[1641211563999,0.419141,47278.0,47277.0,7.304e-05]
[1641211565102,0.469141,47278.0,47277.0,7.304e-05]
[1641211567540,0.319141,47278.0,47277.0,7.304e-05]
[1641211567741,0.05,47278.0,47277.0,7.304e-05]
[1641211567949,0.05289,47279.0,47277.0,7.304e-05]
[1641211568143,0.21,47283.0,47277.0,0.05295404]
[1641211568341,0.21,47283.0,47278.0,0.10575758]
[1641211569344,0.21,47283.0,47280.0,0.052879]
[1641211569553,0.21,47283.0,47281.0,0.05287628]
[1641211570226,0.21,47283.0,47282.0,0.40952941]
[1641211570429,0.262878,47283.0,47282.0,0.40952941]
[1641211571827,0.312878,47283.0,47282.0,0.40952941]
[1641211572231,0.262878,47283.0,47282.0,0.40952941]
[1641211573234,0.262878,47283.0,47281.0,0.05287628]
[1641211573831,0.262878,47283.0,47282.0,0.40573759]
[1641211574240,0.262878,47283.0,47281.0,0.05287628]
[1641211575042,0.262878,47283.0,47281.0,0.46097854]
[1641211575441,0.262878,47283.0,47282.0,0.41834677]
[1641211576644,0.262878,47283.0,47282.0,0.41543677]
[1641211577247,0.252878,47283.0,47282.0,0.41543677]
[1641211577450,0.21,47283.0,47282.0,0.41543677]
[1641211578093,0.21,47283.0,47281.0,0.10575328]
[1641211578494,0.21,47283.0,47281.0,0.52082179]
[1641211578689,0.21,47283.0,47282.0,0.40910115]
[1641211579490,0.21,47283.0,47281.0,0.10575328]
[1641211579691,0.21,47283.0,47281.0,0.5161938]
[1641211579891,0.21,47283.0,47282.0,0.4104049]
[1641211580092,0.052879,47282.0,47281.0,0.42973192]
[1641211581099,0.052879,47282.0,47280.0,0.50075922]
[1641211581542,0.052879,47282.0,47280.0,0.15863255]
[1641211581744,0.26288,47283.0,47280.0,0.15863255]
[1641211582342,0.26288,47283.0,47281.0,0.4199068]
[1641211582542,0.21,47283.0,47281.0,0.4199068]
[1641211582741,0.21,47283.0,47281.0,0.4727858]
[1641211583945,0.21,47283.0,47281.0,0.052879]
[1641211584946,0.21,47283.0,47281.0,0.46487845]
[1641211585192,0.21,47283.0,47282.0,0.41474672]
[1641211585392,0.21,47283.0,47281.0,0.052879]
[1641211586795,0.21,47283.0,47282.0,0.76258764]
[1641211587695,0.21,47283.0,47282.0,0.344508]
[1641211587894,0.21,47283.0,47282.0,0.41195241]
[1641211588296,0.21,47283.0,47281.0,0.155756]
[1641211588495,0.21,47283.0,47281.0,0.052879]
[1641211589639,0.21,47283.0,47281.0,0.1057585]
[1641211590638,0.21,47283.0,47282.0,0.41347703]
[1641211591039,0.21,47283.0,47281.0,0.1057585]
[1641211591239,0.21,47283.0,47282.0,0.344508]
[1641211591641,0.21,47283.0,47281.0,0.1057585]
[1641211592696,0.18,47283.0,47281.0,0.1057585]
[1641211594594,0.18,47283.0,47282.0,0.344508]
[1641211594794,0.18,47283.0,47281.0,0.1057585]
[1641211597058,0.18,47283.0,47281.0,0.1586355]
[1641211597556,0.18,47283.0,47282.0,0.344508]
[1641211603014,0.135,47283.0,47282.0,0.344508]
[1641211603616,0.135,47283.0,47281.0,0.1057585]
[1641211607704,0.135,47283.0,47282.0,0.344508]
[1641211608106,0.108,47283.0,47282.0,0.344508]
[1641211608708,0.108,47283.0,47281.0,0.1057585]
[1641211609314,0.108,47283.0,47282.0,0.06342562]
[1641211610211,0.108,47283.0,47282.0,0.78342383]
[1641211610809,0.108,47283.0,47282.0,1.12793183]
[1641211611113,0.108,47283.0,47282.0,0.40793362]
[1641211612857,0.66264754,47283.0,47281.0,0.71999821]
[1641211613054,0.36781893,47282.0,47281.0,0.71999821]
[1641211613455,0.36781893,47282.0,47275.0,0.72010821]
[1641211613654,0.052887,47280.0,47275.0,0.72010821]
[1641211613855,0.04867793,47282.0,47275.0,0.72010821]
[1641211613856,0.00127793,47282.0,47275.0,0.72010821]
[1641211614256,0.108,47283.0,47275.0,0.72010821]
[1641211614257,0.105773,47281.0,47277.0,0.32239811]
[1641211614455,0.108,47283.0,47278.0,0.44887954]
[1641211614653,0.108,47283.0,47278.0,0.45404072]
[1641211614858,0.108,47283.0,47278.0,0.50404072]
[1641211615054,0.05288,47281.0,47279.0,0.344508]
[1641211615493,0.05288,47281.0,47279.0,1.17492545]
[1641211615693,0.05288,47281.0,47280.0,0.40823774]
[1641211615896,0.05288,47281.0,47280.0,0.75274574]
[1641211616300,0.05288,47281.0,47280.0,0.344508]
[1641211616497,0.05288,47281.0,47279.0,0.05287927]
[1641211616696,0.05288,47281.0,47278.0,0.105757]
[1641211617297,0.05288,47281.0,47278.0,0.15864011]
[1641211618097,0.108,47283.0,47279.0,0.41690756]
[1641211618299,0.108,47283.0,47280.0,0.344508]
[1641211618498,0.108,47283.0,47281.0,0.05287535]
[1641211618699,0.108,47283.0,47282.0,1.22865219]
[1641211618955,0.108,47283.0,47282.0,1.27865219]
[1641211619851,0.108,47283.0,47282.0,0.87599098]
[1641211620052,0.108,47283.0,47282.0,0.97599098]
[1641211620247,0.108,47283.0,47282.0,0.87599098]
[1641211620450,0.108,47283.0,47282.0,1.88398766]
[1641211620850,0.108,47283.0,47282.0,0.87599098]
[1641211621452,0.108,47283.0,47282.0,1.88398766]
[1641211622052,0.108,47283.0,47282.0,0.87599098]
[1641211622452,0.108,47283.0,47282.0,1.88398766]
[1641211623497,0.068,47283.0,47282.0,1.88398766]
[1641211624501,0.068,47283.0,47282.0,2.03260709]
[1641211624900,0.068,47283.0,47282.0,2.9784629]
[1641211625099,0.06787996,47283.0,47282.0,4.0984629]
[1641211625304,0.06787996,47283.0,47282.0,4.16870726]
[1641211626303,0.06787996,47283.0,47282.0,4.21870726]
[1641211626545,0.00837197,47287.0,47285.0,0.052862]
[1641211626746,0.00837197,47287.0,47286.0,2.44928976]
[1641211626946,0.00837197,47287.0,47286.0,2.49928976]
[1641211627345,0.00837197,47287.0,47286.0,2.64928976]
[1641211627545,0.00837197,47287.0,47286.0,3.60728644]
[1641211627949,0.00837197,47287.0,47286.0,4.77849054]
[1641211628344,0.052861,47300.0,47286.0,4.77849054]
[1641211628548,0.59695916,47301.0,47293.0,0.33413149]
[1641211628745,0.00032864,47299.0,47296.0,0.05286111]
[1641211629245,0.00031038,47298.0,47296.0,0.05286111]
[1641211629644,0.59695916,47302.0,47296.0,0.05286111]
[1641211629645,0.00029212,47297.0,47296.0,0.05286111]
[1641211629846,0.00029212,47297.0,47295.0,0.105723]
[1641211630048,0.05315912,47297.0,47295.0,0.105723]
[1641211630307,0.00027386,47296.0,47295.0,0.105723]
[1641211631108,0.21027386,47296.0,47295.0,0.105723]
[1641211634358,0.39236004,47300.0,47297.0,0.26314086]
[1641211634563,0.54988175,47304.0,47299.0,1.60124991]
[1641211634862,0.1,47317.0,47312.0,0.25777863]
[1641211635059,1.07679475,47319.0,47314.0,0.052833]
[1641211635259,1.07679475,47319.0,47316.0,0.00126004]
[1641211635562,0.0001,47325.0,47321.0,0.28636756]
[1641211635761,0.0001,47325.0,47324.0,0.07145337]
[1641211635959,0.0001,47325.0,47324.0,0.46336137]
[1641211637358,0.00453179,47329.0,47324.0,0.46336137]
[1641211637558,0.00453179,47329.0,47324.0,0.39311701]
[1641211637827,0.00054774,47326.0,47324.0,0.04860901]
[1641211638028,0.00054774,47326.0,47325.0,0.344508]
[1641211638225,0.105662,47334.0,47325.0,0.391908]
[1641211638427,0.31582408,47333.0,47325.0,0.0474]
[1641211638624,0.00063903,47331.0,47325.0,0.0474]
[1641211638826,0.16046311,47333.0,47325.0,0.0474]
[1641211639224,0.16046311,47333.0,47326.0,9.129e-05]
[1641211639426,0.052831,47330.0,47327.0,0.052834]
[1641211640026,0.34603453,47329.0,47327.0,0.052834]
[1641211641128,0.34603453,47332.0,47327.0,0.052834]
[1641211641332,0.319141,47331.0,47327.0,0.052834]
[1641211641560,0.23711131,47328.0,47327.0,0.052834]
[1641211641958,0.23711131,47328.0,47327.0,0.05290703]
[1641211642159,0.34602669,47328.0,47327.0,0.05290703]
[1641211643568,0.28775471,47329.0,47327.0,0.05290703]
[1641211644761,0.23775471,47329.0,47327.0,0.05290703]
[1641211645064,0.052831,47330.0,47327.0,0.05290703]
[1641211645506,0.315668,47332.0,47327.0,0.05290703]
[1641211645507,0.21,47332.0,47327.0,0.05290703]
[1641211646108,0.53271395,47332.0,47327.0,0.05290703]
[1641211647108,0.21,47332.0,47328.0,0.052832]
[1641211647407,0.21,47332.0,47328.0,0.105662]
[1641211647610,0.21,47332.0,47331.0,2.72128126]
[1641211647812,0.0001,47337.0,47332.0,1.61021094]
[1641211648009,0.0001,47337.0,47336.0,2.18888332]
[1641211648210,0.002,47349.0,47339.0,0.874508]
[1641211648407,0.0001,47348.0,47343.0,0.5921]
[1641211648612,0.0001,47348.0,47344.0,0.391908]
[1641211648807,0.0101,47354.0,47346.0,0.07024436]
[1641211649061,0.0101,47354.0,47349.0,0.00124593]
[1641211649257,0.0101,47354.0,47350.0,0.391908]
[1641211649461,0.0101,47354.0,47350.0,0.76029282]
[1641211649659,0.00036516,47351.0,47350.0,1.261583]
[1641211649859,0.00036516,47351.0,47350.0,0.70878818]
[1641211650061,0.00036516,47351.0,47350.0,0.21]
[1641211650462,0.00036516,47351.0,47349.0,0.052797]
[1641211650859,0.24123601,47350.0,47349.0,0.052797]
[1641211651559,0.56037701,47350.0,47349.0,0.052797]
[1641211651759,0.82037701,47350.0,47349.0,0.05262821]
[1641211651959,0.82037701,47350.0,47347.0,0.105623]
[1641211652159,0.319141,47349.0,47347.0,0.105623]
[1641211652360,0.31946964,47349.0,47347.0,0.105623]
[1641211652560,0.00031038,47348.0,47347.0,0.105623]
[1641211652828,0.31945138,47348.0,47347.0,0.105623]
[1641211653427,0.00031038,47348.0,47347.0,0.105623]
[1641211658154,0.00031038,47348.0,47347.0,0.080623]
[1641211659157,0.00031038,47348.0,47347.0,0.475131]
[1641211660697,0.00031038,47348.0,47347.0,0.425131]
[1641211661099,0.00031038,47348.0,47347.0,0.080623]
[1641211661900,0.27531136,47348.0,47347.0,0.080623]
[1641211662102,0.67668362,47348.0,47347.0,0.080623]
[1641211662401,0.27531136,47348.0,47347.0,0.080623]
[1641211664073,0.27531136,47348.0,47347.0,0.79963854]
[1641211669403,0.27531136,47348.0,47347.0,0.080623]
[1641211673160,0.27531136,47348.0,47347.0,0.070623]
[1641211675200,0.32271136,47348.0,47347.0,0.070623]
[1641211675400,0.64185236,47348.0,47347.0,0.070623]
[1641211675601,0.74185236,47348.0,47347.0,0.070623]
[1641211678804,0.64185236,47348.0,47347.0,0.070623]
[1641211679052,0.74185236,47348.0,47347.0,0.070623]
[1641211681750,0.64185236,47348.0,47347.0,0.070623]
[1641211682450,0.64154198,47348.0,47347.0,0.070623]
[1641211686655,0.366541,47348.0,47347.0,0.070623]
[1641211688459,0.466541,47348.0,47347.0,0.070623]